fUSD/lending_fUSD_20240105
["ID","MTS","AMOUNT","RATE_DAILY","PERIOD"]
[310322962,1704473449069,-500.0,0.00030136,2]
[310322963,1704473449078,-1800.48,0.00030136,2]
[310322964,1704473449087,-526.40019478,0.00030136,2]
[310322965,1704473449096,-768.62,0.00030136,2]
[310322966,1704473449105,-500.0,0.00030136,2]
[310322967,1704473449114,-500.0,0.00030136,2]
[310322968,1704473449123,-277.96277619,0.00030136,2]
[310322969,1704473449133,-500.0,0.00030136,2]
[310322970,1704473449143,-2756.04,0.00030136,2]
[310322971,1704473449153,-500.0,0.00030136,2]
[310322972,1704473449163,-500.0,0.00030136,2]
[310322973,1704473449172,-2834.13,0.00030136,2]
[310322974,1704473449182,-330.28113806,0.00030136,2]
[310322975,1704473449191,-1051.18,0.00030136,2]
[310322976,1704473449202,-562.18913401,0.00030136,2]
[310322977,1704473449212,-2515.3,0.00030136,2]
[310322978,1704473449222,-500.0,0.00030136,2]
[310322979,1704473449233,-5299.03,0.00030136,2]
[310322980,1704473449244,-500.0,0.00030136,2]
[310322981,1704473449253,-500.0,0.00030136,2]
[310322982,1704473449262,-500.0,0.00030136,2]
[310322983,1704473449271,-664.57,0.00030136,2]
[310322984,1704473449280,-537.2,0.00030136,2]
[310322985,1704473449290,-500.0,0.00030136,2]
[310322986,1704473449299,-500.0,0.00030136,2]
[310322987,1704473449308,-500.0,0.00030136,2]
[310322988,1704473449318,-512.71,0.00030136,2]
[310322989,1704473449328,-500.0,0.00030136,2]
[310322990,1704473449337,-500.0,0.00030136,2]
[310322991,1704473449347,-500.0,0.00030136,2]
[310322992,1704473449357,-500.0,0.00030136,2]
[310322993,1704473449366,-500.0,0.00030136,2]
[310322994,1704473449376,-1696.0,0.00030136,2]
[310322995,1704473449385,-3340.06,0.00030136,2]
[310322996,1704473449394,-500.0,0.00030136,2]
[310322997,1704473449404,-2490.22,0.00030136,2]
[310322998,1704473449413,-500.0,0.00030136,2]
[310322999,1704473449424,-1285.5,0.00030136,2]
[310323000,1704473449433,-500.0,0.00030136,2]
[310323001,1704473449443,-525.61234347,0.00030136,2]
[310323002,1704473449452,-848.87,0.00030136,2]
[310323003,1704473449461,-500.0,0.00030136,2]
[310323004,1704473449471,-500.0,0.00030136,2]
[310323005,1704473449480,-359.0419992,0.00030136,2]
[310323006,1704473449490,-500.0,0.00030136,2]
[310323007,1704473449499,-500.0,0.00030136,2]
[310323008,1704473449508,-554.12,0.00030136,2]
[310323009,1704473449517,-606.02,0.00030136,2]
[310323010,1704473449527,-11508.87,0.00030136,2]
[310323011,1704473449536,-500.0,0.00030136,2]
[310323012,1704473449546,-500.0,0.00030136,2]
[310323013,1704473449556,-500.0,0.00030136,2]
[310323014,1704473449565,-1649.63,0.00030136,2]
[310323015,1704473449574,-1188.82,0.00030136,2]
[310323016,1704473449584,-500.0,0.00030136,2]
[310323017,1704473449593,-189.72368783,0.00030136,2]
[310323018,1704473449603,-500.0,0.00030136,2]
[310323019,1704473449612,-687.41,0.00030136,2]
[310323020,1704473449622,-1161.09,0.00030136,2]
[310323021,1704473449631,-500.0,0.00030136,2]
[310323022,1704473449641,-994.25,0.00030136,2]
[310323023,1704473449651,-500.0,0.00030136,2]
[310323024,1704473449661,-500.0,0.00030136,2]
[310323025,1704473449670,-500.0,0.00030136,2]
[310323026,1704473449680,-907.04,0.00030136,2]
[310323027,1704473449690,-526.4592734,0.00030136,2]
[310323028,1704473449699,-4030.69,0.00030136,2]
[310323029,1704473449709,-1654.56436774,0.00030136,2]
[310323030,1704473449723,-2128.79563226,0.00030136,2]
[310323031,1704473449732,-500.0,0.00030136,2]
[310323032,1704473449742,-500.0,0.00030136,2]
[310323033,1704473449752,-500.0,0.00030136,2]
[310323034,1704473449762,-500.0,0.00030136,2]
[310323035,1704473449771,-2006.85,0.00030136,2]
[310323036,1704473449781,-871.44,0.00030136,2]
[310323037,1704473449790,-500.0,0.00030136,2]
[310323038,1704473449801,-500.0,0.00030136,2]
[310323039,1704473449812,-500.0,0.00030136,2]
[310323040,1704473449822,-500.0,0.00030136,2]
[310323041,1704473449832,-546.9485798,0.00030136,2]
[310323042,1704473449841,-500.0,0.00030136,2]
[310323043,1704473449851,-500.0,0.00030136,2]
[310323044,1704473449861,-500.0,0.00030136,2]
[310323045,1704473449871,-528.11379191,0.00030136,2]
[310323046,1704473449885,-500.0,0.00030136,2]
[310323047,1704473449894,-907.85199602,0.00030136,2]
[310323048,1704473449907,-352.90914,0.00030136,2]
[310323049,1704473449947,-1231.80012843,0.00030136,2]
[310323050,1704473449960,-845.47911421,0.00030136,2]
[310323051,1704473449972,-5114.82962134,0.00030136,2]
[310323052,1704473449981,-1134.28,0.00030136,2]
[310323053,1704473449990,-515.81212475,0.00030136,2]
[310323054,1704473449999,-500.0,0.00030136,2]
[310323055,1704473450009,-500.0,0.00030136,2]
[310323056,1704473450018,-500.0,0.00030136,2]
[310323057,1704473450028,-500.0,0.00030136,2]
[310323058,1704473450037,-500.0,0.00030136,2]
[310323059,1704473450047,-500.0,0.00030136,2]
[310323060,1704473450056,-566.66,0.00030136,2]
[310323061,1704473450065,-514.76492111,0.00030136,2]
[310323062,1704473450075,-500.0,0.00030136,2]
[310323063,1704473450084,-1157.92,0.00030136,2]
[310323064,1704473450095,-500.0,0.00030136,2]
[310323065,1704473450104,-500.0,0.00030136,2]
[310323066,1704473450113,-500.0,0.00030136,2]
[310323067,1704473450123,-500.0,0.00030136,2]
[310323068,1704473450132,-500.0,0.00030136,2]
[310323069,1704473450141,-512.07,0.00030136,2]
[310323070,1704473450151,-500.0,0.00030136,2]
[310323071,1704473450160,-1638.59,0.00030136,2]
[310323072,1704473450170,-500.0,0.00030136,2]
[310323073,1704473450179,-512.86363268,0.00030136,2]
[310323074,1704473450188,-1195.76,0.00030136,2]
[310323075,1704473450197,-1402.48,0.00030136,2]
[310323076,1704473450217,-500.0,0.00030136,2]
[310323077,1704473450228,-500.0,0.00030136,2]
[310323078,1704473450237,-7740.43,0.00030136,2]
[310323079,1704473450247,-500.0,0.00030136,2]
[310323080,1704473450256,-500.0,0.00030136,2]
[310323081,1704473450265,-500.0,0.00030136,2]
[310323082,1704473450275,-500.0,0.00030136,2]
[310323083,1704473450285,-8147.18,0.00030136,2]
[310323084,1704473450295,-500.0,0.00030136,2]
[310323085,1704473450305,-8147.18,0.00030136,2]
[310323086,1704473450314,-8147.18,0.00030136,2]
[310323087,1704473450323,-500.0,0.00030136,2]
[310323088,1704473450333,-500.0,0.00030136,2]
[310323089,1704473450342,-8147.18,0.00030136,2]
[310323090,1704473450351,-522.84140417,0.00030136,2]
[310323091,1704473450361,-8147.18,0.00030136,2]
[310323092,1704473450370,-500.0,0.00030136,2]
[310323093,1704473450380,-8147.18,0.00030136,2]
[310323094,1704473450389,-8147.18,0.00030136,2]
[310323095,1704473450399,-500.0,0.00030136,2]
[310323096,1704473450408,-1600.27,0.00030136,2]
[310323097,1704473450418,-504.28,0.00030136,2]
[310323098,1704473450428,-500.0,0.00030136,2]
[310323099,1704473450438,-500.0,0.00030136,2]
[310323100,1704473450448,-500.0,0.00030136,2]
[310323101,1704473450458,-500.0,0.00030136,2]
[310323102,1704473450468,-2394.98,0.00030136,2]
[310323103,1704473450479,-500.0,0.00030136,2]
[310323104,1704473450489,-500.0,0.00030136,2]
[310323105,1704473450498,-500.0,0.00030136,2]
[310323106,1704473450507,-238.67887383,0.00030136,2]
[310323107,1704473450517,-500.0,0.00030136,2]
[310323108,1704473450526,-1206.82,0.00030136,2]
[310323109,1704473450536,-500.0,0.00030136,2]
[310323110,1704473450546,-500.0,0.00030136,2]
[310323111,1704473450555,-500.0,0.00030136,2]
[310323112,1704473450565,-1116.25,0.00030136,2]
[310323113,1704473450574,-508.28825125,0.00030136,2]
[310323114,1704473450583,-1341.2,0.00030136,2]
[310323115,1704473450594,-500.0,0.00030136,2]
[310323116,1704473450604,-1246.52,0.00030136,2]
[310323117,1704473450614,-500.0,0.00030136,2]
[310323118,1704473450624,-500.0,0.00030136,2]
[310323119,1704473450633,-500.0,0.00030136,2]
[310323120,1704473450642,-500.0,0.00030136,2]
[310323121,1704473450652,-500.0,0.00030136,2]
[310323122,1704473450661,-884.54,0.00030136,2]
[310323123,1704473450671,-637.39694101,0.00030136,2]
[310323124,1704473450681,-551.51712703,0.00030136,2]
[310323125,1704473450691,-500.0,0.00030136,2]
[310323126,1704473450701,-500.0,0.00030136,2]
[310323127,1704473450711,-3145.82,0.00030136,2]
[310323128,1704473450721,-834.29,0.00030136,2]
[310323129,1704473450734,-1393.24,0.00030136,2]
[310323130,1704473450745,-1151.41,0.00030136,2]
[310323131,1704473450755,-500.0,0.00030136,2]
[310323132,1704473450766,-500.0,0.00030136,2]
[310323133,1704473450777,-500.0,0.00030136,2]
[310323134,1704473450788,-503.74226081,0.00030136,2]
[310323135,1704473450799,-500.0,0.00030136,2]
[310323136,1704473450809,-790.38,0.00030136,2]
[310323137,1704473450820,-542.06,0.00030136,2]
[310323138,1704473450830,-506.67837057,0.00030136,2]
[310323139,1704473450841,-500.0,0.00030136,2]
[310323140,1704473450852,-501.35,0.00030136,2]
[310323141,1704473450867,-500.0,0.00030136,2]
[310323142,1704473450878,-154.19108676,0.00030136,2]
[310323143,1704473450889,-1526.32,0.00030136,2]
[310323144,1704473450900,-500.0,0.00030136,2]
[310323145,1704473450910,-757.34,0.00030136,2]
[310323146,1704473450920,-359.02051861,0.00030136,2]
[310323147,1704473450930,-500.0,0.00030136,2]
[310323148,1704473450941,-153.84,0.00030137,2]
[310323149,1704473450951,-208.0,0.0003022,2]
[310323150,1704473450961,-282.0,0.0003022,2]
[310323151,1704473450973,-277.16,0.00030222,2]
[310323152,1704473450987,-150.0,0.00030232,2]
[310323153,1704473450998,-152.32,0.00030253,2]
[310323154,1704473451009,-2423.05760651,0.00030345,2]
[310323155,1704473451019,-1000.0,0.00030372,2]
[310323156,1704473451029,-277.16,0.00030373,2]
[310323157,1704473451039,-190.83209518,0.00030379,2]
[310323158,1704473451053,-106029.7967264,0.00030389,2]
[310323159,1704473451064,-8147.18,0.00030408,2]
[310323160,1704473451075,-8147.18,0.00030408,2]
[310323161,1704473451085,-8147.18,0.00030408,2]
[310323162,1704473451096,-8147.18,0.00030408,2]
[310323163,1704473451106,-8147.18,0.00030408,2]
[310323164,1704473451116,-8147.18,0.00030408,2]
[310323165,1704473451127,-8147.18,0.00030408,2]
[310323166,1704473451136,-8147.18,0.00030408,2]
[310323167,1704473451146,-2097.5441596,0.00030409,4]
[310323168,1704473451156,-500.0,0.00030409,2]
[310323169,1704473451165,-500.0,0.00030409,2]
[310323170,1704473451175,-533.42102289,0.00030409,2]
[310323171,1704473451185,-8147.18,0.00030409,2]
[310323172,1704473451194,-8147.18,0.00030409,2]
[310323173,1704473451204,-500.0,0.0003041,2]
[310323174,1704473451214,-500.0,0.0003041,2]
[310323175,1704473451226,-500.0,0.0003041,2]
[310323176,1704473451235,-500.0,0.0003041,2]
[310323177,1704473451245,-500.0,0.0003041,2]
[310323178,1704473451255,-500.0,0.0003041,2]
[310323179,1704473451265,-500.0,0.0003041,2]
[310323180,1704473451278,-169.28324069,0.0003041,2]
[310323181,1704473451287,-500.0,0.0003041,2]
[310323182,1704473451297,-500.0,0.0003041,2]
[310323183,1704473451306,-500.0,0.0003041,2]
[310323184,1704473451316,-500.0,0.0003041,2]
[310323185,1704473451326,-500.0,0.0003041,2]
[310323186,1704473451336,-500.0,0.0003041,2]
[310323187,1704473451345,-500.0,0.0003041,2]
[310323188,1704473451356,-500.0,0.0003041,2]
[310323189,1704473451367,-500.0,0.0003041,2]
[310323190,1704473451377,-500.0,0.0003041,2]
[310323191,1704473451387,-500.0,0.0003041,2]
[310323192,1704473451397,-500.0,0.0003041,2]
[310323193,1704473451408,-438.14846518,0.0003041,2]
[310323194,1704473451417,-500.0,0.0003041,2]
[310323195,1704473451428,-500.0,0.0003041,2]
[310323196,1704473451438,-500.0,0.0003041,2]
[310323197,1704473451449,-500.0,0.0003041,2]
[310323198,1704473451460,-500.0,0.0003041,2]
[310323199,1704473451471,-500.0,0.0003041,2]
[310323200,1704473451483,-500.0,0.0003041,2]
[310323201,1704473451493,-171.90503515,0.0003041,2]
[310323202,1704473451503,-500.0,0.0003041,2]
[310323203,1704473451514,-500.0,0.0003041,2]
[310323204,1704473451524,-500.0,0.0003041,2]
[310323205,1704473451534,-500.0,0.0003041,2]
[310323206,1704473451545,-500.0,0.0003041,2]
[310323207,1704473451555,-500.0,0.0003041,2]
[310323208,1704473451565,-679.76,0.0003041,2]
[310323209,1704473451577,-500.0,0.0003041,2]
[310323210,1704473451587,-530.41311498,0.0003041,2]
[310323211,1704473451597,-500.0,0.0003041,2]
[310323212,1704473451608,-500.0,0.0003041,2]
[310323213,1704473451618,-500.0,0.0003041,2]
[310323214,1704473451629,-500.0,0.0003041,2]
[310323215,1704473451640,-500.0,0.0003041,2]
[310323216,1704473451650,-402.40083409,0.0003041,2]
[310323217,1704473451660,-500.0,0.0003041,2]
[310323218,1704473451671,-500.0,0.0003041,2]
[310323219,1704473451681,-500.0,0.0003041,2]
[310323220,1704473451691,-500.0,0.0003041,2]
[310323221,1704473451702,-500.0,0.0003041,2]
[310323222,1704473451712,-500.0,0.0003041,2]
[310323223,1704473451729,-500.0,0.0003041,2]
[310323224,1704473451739,-500.0,0.0003041,2]
[310323225,1704473451750,-500.0,0.0003041,2]
[310323226,1704473451761,-500.0,0.0003041,2]
[310323227,1704473451772,-500.0,0.0003041,2]
[310323228,1704473451784,-500.0,0.0003041,2]
[310323229,1704473451795,-500.0,0.0003041,2]
[310323230,1704473451806,-500.0,0.0003041,2]
[310323231,1704473451817,-500.0,0.0003041,2]
[310323232,1704473451828,-500.0,0.0003041,2]
[310323233,1704473451838,-500.0,0.0003041,2]
[310323234,1704473451849,-500.0,0.0003041,2]
[310323235,1704473451859,-291.86084374,0.0003041,2]
[310323236,1704473451870,-500.0,0.0003041,2]
[310323237,1704473451885,-500.0,0.0003041,2]
[310323238,1704473451896,-500.0,0.0003041,2]
[310323239,1704473451906,-500.0,0.0003041,2]
[310323240,1704473451916,-500.0,0.0003041,2]
[310323241,1704473451926,-500.0,0.0003041,2]
[310323242,1704473451937,-500.0,0.0003041,2]
[310323243,1704473451947,-500.0,0.0003041,2]
[310323244,1704473451958,-500.0,0.0003041,2]
[310323245,1704473451968,-500.0,0.0003041,2]
[310323246,1704473451980,-500.0,0.0003041,2]
[310323247,1704473451990,-500.0,0.0003041,2]
[310323248,1704473452001,-500.0,0.0003041,2]
[310323249,1704473452011,-463.27758708,0.0003041,2]
[310323250,1704473452021,-500.0,0.0003041,2]
[310323251,1704473452031,-500.0,0.0003041,2]
[310323252,1704473452042,-500.0,0.0003041,2]
[310323253,1704473452052,-500.00000001,0.0003041,2]
[310323254,1704473452063,-500.0,0.0003041,2]
[310323255,1704473452074,-500.0,0.0003041,2]
[310323256,1704473452083,-500.0,0.0003041,2]
[310323257,1704473452094,-518.83205858,0.0003041,2]
[310323258,1704473452105,-500.0,0.0003041,2]
[310323259,1704473452119,-500.0,0.0003041,2]
[310323260,1704473452154,-500.0,0.0003041,2]
[310323261,1704473452166,-500.0,0.0003041,2]
[310323262,1704473452177,-500.0,0.0003041,2]
[310323263,1704473452189,-500.0,0.0003041,2]
[310323264,1704473452200,-500.0,0.0003041,2]
[310323265,1704473452213,-500.0,0.0003041,2]
[310323266,1704473452226,-500.0,0.0003041,2]
[310323267,1704473452237,-500.0,0.0003041,2]
[310323268,1704473452249,-500.0,0.0003041,2]
[310323269,1704473452260,-500.0,0.0003041,2]
[310323270,1704473452271,-500.0,0.0003041,2]
[310323271,1704473452282,-500.0,0.0003041,2]
[310323272,1704473452293,-500.0,0.0003041,2]
[310323273,1704473452304,-500.0,0.0003041,2]
[310323274,1704473452315,-500.0,0.0003041,2]
[310323275,1704473452327,-500.0,0.0003041,2]
[310323276,1704473452339,-500.0,0.0003041,2]
[310323277,1704473452351,-500.0,0.0003041,2]
[310323278,1704473452363,-500.0,0.0003041,2]
[310323279,1704473452375,-472.45095714,0.0003041,2]
[310323280,1704473452386,-500.0,0.0003041,2]
[310323281,1704473452397,-500.0,0.0003041,2]
[310323282,1704473452409,-500.0,0.0003041,2]
[310323283,1704473452420,-732.22,0.0003041,2]
[310323284,1704473452432,-500.0,0.0003041,2]
[310323285,1704473452442,-500.0,0.0003041,2]
[310323286,1704473452453,-912.12,0.0003041,2]
[310323287,1704473452463,-500.0,0.0003041,2]
[310323288,1704473452477,-500.0,0.0003041,2]
[310323289,1704473452489,-500.0,0.0003041,2]
[310323290,1704473452500,-500.0,0.0003041,2]
[310323291,1704473452512,-500.0,0.0003041,2]
[310323292,1704473452522,-500.0,0.0003041,2]
[310323293,1704473452533,-500.0,0.0003041,2]
[310323294,1704473452544,-500.0,0.0003041,2]
[310323295,1704473452555,-500.0,0.0003041,2]
[310323296,1704473452567,-500.0,0.0003041,2]
[310323297,1704473452579,-500.0,0.0003041,2]
[310323298,1704473452590,-500.0,0.0003041,2]
[310323299,1704473452600,-557.95,0.0003041,2]
[310323300,1704473452611,-500.0,0.0003041,2]
[310323301,1704473452623,-500.0,0.0003041,2]
[310323302,1704473452634,-711.61,0.0003041,2]
[310323303,1704473452645,-500.0,0.0003041,2]
[310323304,1704473452656,-777.32,0.0003041,2]
[310323305,1704473452668,-500.0,0.0003041,2]
[310323306,1704473452678,-500.0,0.0003041,2]
[310323307,1704473452690,-500.0,0.0003041,2]
[310323308,1704473452700,-500.0,0.0003041,2]
[310323309,1704473452712,-500.0,0.0003041,2]
[310323310,1704473452722,-500.0,0.0003041,2]
[310323311,1704473452736,-500.0,0.0003041,2]
[310323312,1704473452747,-500.0,0.0003041,2]
[310323313,1704473452758,-500.0,0.0003041,2]
[310323314,1704473452769,-500.0,0.0003041,2]
[310323315,1704473452779,-500.0,0.0003041,2]
[310323316,1704473452791,-500.0,0.0003041,2]
[310323317,1704473452801,-500.0,0.0003041,2]
[310323318,1704473452813,-500.0,0.0003041,2]
[310323319,1704473452824,-500.0,0.0003041,2]
[310323320,1704473452835,-500.0,0.0003041,2]
[310323321,1704473452846,-500.0,0.0003041,2]
[310323322,1704473452857,-466.10023055,0.0003041,2]
[310323323,1704473452869,-500.0,0.0003041,2]
[310323324,1704473452882,-500.0,0.0003041,2]
[310323325,1704473452893,-224.71203332,0.0003041,2]
[310323326,1704473452905,-500.0,0.0003041,2]
[310323327,1704473452915,-500.0,0.0003041,2]
[310323328,1704473452926,-592.48,0.0003041,2]
[310323329,1704473452938,-500.0,0.0003041,2]
[310323330,1704473452948,-500.0,0.0003041,2]
[310323331,1704473452959,-500.0,0.0003041,2]
[310323332,1704473452971,-500.0,0.0003041,2]
[310323333,1704473452986,-500.0,0.0003041,2]
[310323334,1704473452997,-1000.0,0.0003041,2]
[310323335,1704473453007,-579.75790918,0.0003041,2]
[310323336,1704473453018,-500.0,0.0003041,2]
[310323337,1704473453029,-996.51,0.0003041,2]
[310323338,1704473453041,-500.0,0.0003041,2]
[310323339,1704473453052,-500.0,0.0003041,2]
[310323340,1704473453063,-500.0,0.0003041,2]
[310323341,1704473453073,-500.0,0.0003041,2]
[310323342,1704473453084,-500.0,0.0003041,2]
[310323343,1704473453097,-500.0,0.0003041,2]
[310323344,1704473453109,-500.0,0.0003041,2]
[310323345,1704473453119,-500.0,0.0003041,2]
[310323346,1704473453130,-500.0,0.0003041,2]
[310323347,1704473453142,-500.0,0.0003041,2]
[310323348,1704473453153,-500.0,0.0003041,2]
[310323349,1704473453164,-710.5,0.0003041,2]
[310323350,1704473453175,-500.0,0.0003041,2]
[310323351,1704473453186,-584.24042953,0.0003041,2]
[310323352,1704473453197,-500.0,0.0003041,2]
[310323353,1704473453208,-500.0,0.0003041,2]
[310323354,1704473453218,-500.0,0.0003041,2]
[310323355,1704473453229,-666.1,0.0003041,2]
[310323356,1704473453239,-537.71,0.0003041,2]
[310323357,1704473453251,-500.0,0.0003041,2]
[310323358,1704473453262,-500.0,0.0003041,2]
[310323359,1704473453273,-617.72,0.0003041,2]
[310323360,1704473453285,-500.0,0.0003041,2]
[310323361,1704473453296,-500.0,0.0003041,2]
[310323362,1704473453307,-647.0,0.0003041,2]
[310323363,1704473453318,-500.0,0.0003041,2]
[310323364,1704473453329,-500.0,0.0003041,2]
[310323365,1704473453340,-500.0,0.0003041,2]
[310323366,1704473453351,-500.0,0.0003041,2]
[310323367,1704473453362,-500.0,0.0003041,2]
[310323368,1704473453373,-500.0,0.0003041,2]
[310323369,1704473453383,-772.2,0.0003041,2]
[310323370,1704473453395,-500.0,0.0003041,2]
[310323371,1704473453406,-500.0,0.0003041,2]
[310323372,1704473453417,-500.0,0.0003041,2]
[310323373,1704473453430,-500.0,0.0003041,2]
[310323374,1704473453442,-500.0,0.0003041,2]
[310323375,1704473453453,-500.0,0.0003041,2]
[310323376,1704473453464,-321.32657419,0.0003041,2]
[310323377,1704473453478,-537.87,0.0003041,2]
[310323378,1704473453490,-1038.34,0.0003041,2]
[310323379,1704473453501,-500.0,0.0003041,2]
[310323380,1704473453513,-500.0,0.0003041,2]
[310323381,1704473453524,-500.0,0.0003041,2]
[310323382,1704473453534,-500.0,0.0003041,2]
[310323383,1704473453545,-500.0,0.0003041,2]
[310323384,1704473453555,-500.0,0.0003041,2]
[310323385,1704473453566,-500.0,0.0003041,2]
[310323386,1704473453577,-304.51676232,0.0003041,2]
[310323387,1704473453587,-500.0,0.0003041,2]
[310323388,1704473453597,-500.0,0.0003041,2]
[310323389,1704473453608,-527.78377201,0.0003041,2]
[310323390,1704473453618,-500.0,0.0003041,2]
[310323391,1704473453629,-500.0,0.0003041,2]
[310323392,1704473453641,-500.0,0.0003041,2]
[310323393,1704473453651,-500.0,0.0003041,2]
[310323394,1704473453663,-500.0,0.0003041,2]
[310323395,1704473453674,-500.0,0.0003041,2]
[310323396,1704473453685,-449.72597522,0.0003041,2]
[310323397,1704473453696,-544.08,0.0003041,2]
[310323398,1704473453707,-500.0,0.0003041,2]
[310323399,1704473453718,-500.0,0.0003041,2]
[310323400,1704473453729,-500.0,0.0003041,2]
[310323401,1704473453739,-500.0,0.0003041,2]
[310323402,1704473453749,-656.98,0.0003041,2]
[310323403,1704473453760,-500.0,0.0003041,2]
[310323404,1704473453775,-500.0,0.0003041,2]
[310323405,1704473453799,-500.0,0.0003041,2]
[310323406,1704473453818,-500.0,0.0003041,2]
[310323407,1704473453830,-500.0,0.0003041,2]
[310323408,1704473453841,-500.0,0.0003041,2]
[310323409,1704473453853,-669.87,0.0003041,2]
[310323410,1704473453866,-500.0,0.0003041,2]
[310323411,1704473453878,-530.72339596,0.0003041,2]
[310323412,1704473453890,-500.0,0.0003041,2]
[310323413,1704473453901,-560.1730972,0.0003041,2]
[310323414,1704473453911,-257.26726577,0.0003041,2]
[310323415,1704473453922,-500.0,0.0003041,2]
[310323416,1704473453933,-500.0,0.0003041,2]
[310323417,1704473453944,-694.38,0.0003041,2]
[310323418,1704473453954,-500.0,0.0003041,2]
[310323419,1704473453964,-742.45,0.0003041,2]
[310323420,1704473453975,-500.0,0.0003041,2]
[310323421,1704473453987,-500.0,0.0003041,2]
[310323422,1704473453997,-500.0,0.0003041,2]
[310323423,1704473454008,-500.0,0.0003041,2]
[310323424,1704473454018,-500.0,0.0003041,2]
[310323425,1704473454028,-500.0,0.0003041,2]
[310323426,1704473454038,-544.16,0.0003041,2]
[310323427,1704473454048,-671.99,0.0003041,2]
[310323428,1704473454059,-669.51,0.0003041,2]
[310323429,1704473454069,-321.14364726,0.0003041,2]
[310323430,1704473454080,-500.0,0.0003041,2]
[310323431,1704473454091,-500.0,0.0003041,2]
[310323432,1704473454101,-548.59,0.0003041,2]
[310323433,1704473454111,-502.59771736,0.0003041,2]
[310323434,1704473454122,-500.0,0.0003041,2]
[310323435,1704473454132,-500.0,0.0003041,2]
[310323436,1704473454143,-500.0,0.0003041,2]
[310323437,1704473454153,-500.0,0.0003041,2]
[310323438,1704473454164,-495.33313842,0.0003041,2]
[310323439,1704473454174,-500.0,0.0003041,2]
[310323440,1704473454184,-500.0,0.0003041,2]
[310323441,1704473454195,-500.0,0.0003041,2]
[310323442,1704473454205,-500.0,0.0003041,2]
[310323443,1704473454216,-500.0,0.0003041,2]
[310323444,1704473454229,-1530.36,0.0003041,2]
[310323445,1704473454239,-583.81,0.0003041,2]
[310323446,1704473454249,-500.0,0.0003041,2]
[310323447,1704473454261,-500.0,0.0003041,2]
[310323448,1704473454579,-500.0,0.0003041,2]
[310323449,1704473454588,-500.0,0.0003041,2]
[310323450,1704473454598,-500.0,0.0003041,2]
[310323451,1704473454607,-500.0,0.0003041,2]
[310323452,1704473454617,-500.0,0.0003041,2]
[310323453,1704473454627,-500.0,0.0003041,2]
[310323454,1704473454638,-500.0,0.0003041,2]
[310323455,1704473454647,-547.59382245,0.0003041,2]
[310323456,1704473454658,-500.0,0.0003041,2]
[310323457,1704473454667,-500.0,0.0003041,2]
[310323458,1704473454676,-754.95,0.0003041,2]
[310323459,1704473454686,-500.0,0.0003041,2]
[310323460,1704473454695,-500.0,0.0003041,2]
[310323461,1704473454704,-500.0,0.0003041,2]